bitfinex-derivatives/quotes_SOLF0:USTF0_20250215
["timestamp","ask_amount","ask_price","bid_price","bid_amount"]
[1739631012459,0.0365961,194.36,194.32,0.03720933]
[1739631012956,9.14739908,194.35,194.32,0.03720933]
[1739631013152,9.14739908,194.33,194.32,0.03720933]
[1739631013658,14.29249908,194.33,194.32,0.03720933]
[1739631016156,9.14739908,194.33,194.32,0.03720933]
[1739631016360,9.14739908,194.35,194.32,0.03720933]
[1739631016963,9.14739908,194.33,194.32,0.03720933]
[1739631017558,14.29249908,194.33,194.32,0.03720933]
[1739631020774,9.14739908,194.33,194.32,0.03720933]
[1739631021060,0.0365961,194.36,194.32,0.03720933]
[1739631022066,5.1808961,194.36,194.32,0.03720933]
[1739631023766,5.145,194.34,194.32,0.03720933]
[1739631023963,9.14739908,194.33,194.32,0.03720933]
[1739631024668,14.29249908,194.33,194.32,0.03720933]
[1739631028776,9.14739908,194.33,194.32,0.03720933]
[1739631028974,9.14739908,194.35,194.32,0.03720933]
[1739631029167,0.0365961,194.36,194.32,0.03720933]
[1739631030173,5.1808961,194.36,194.32,0.03720933]
[1739631030975,5.1808961,194.36,194.32,9.18460841]
[1739631030976,0.0365961,194.36,194.32,9.18460841]
[1739631032078,0.0365961,194.36,194.33,5.145]
[1739631032580,0.0365961,194.36,194.32,9.18460841]
[1739631033777,0.0365961,194.36,194.32,14.32980841]
[1739631034681,0.0365961,194.36,194.32,9.18460841]
[1739631034882,5.1808961,194.36,194.32,9.18460841]
[1739631035180,5.1808961,194.36,194.32,0.03720933]
[1739631035575,9.14739908,194.35,194.32,0.03720933]
[1739631035973,9.14739908,194.33,194.32,0.03720933]
[1739631036178,14.29249908,194.33,194.32,0.03720933]
[1739631038983,5.1448,194.34,194.32,0.03720933]
[1739631040582,9.14739908,194.35,194.32,0.03720933]
[1739631042188,5.1448,194.34,194.32,0.03720933]
[1739631044692,5.1451,194.33,194.32,0.03720933]
[1739631044889,14.29249908,194.33,194.32,0.03720933]
[1739631047293,9.14739908,194.33,194.32,0.03720933]
[1739631049596,9.14739908,194.35,194.32,0.03720933]
[1739631052492,5.1808961,194.36,194.32,0.03720933]
[1739631052694,5.1808961,194.36,194.34,9.14739908]
[1739631052695,0.0365961,194.36,194.34,9.14739908]
[1739631053298,0.0365961,194.36,194.35,5.1445]
[1739631055299,0.0365961,194.36,194.34,14.29219908]
[1739631058202,0.0365961,194.36,194.35,5.1445]
[1739631059799,14.28989908,194.43,194.38,5.1436]
[1739631060199,9.14739908,194.41,194.35,9.14739908]
[1739631060400,14.29039908,194.41,194.37,5.1438]
[1739631060600,9.14739908,194.41,194.37,5.1438]
[1739631060903,0.03879118,194.41,194.38,5.1436]
[1739631061797,0.03879118,194.41,194.4,5.1432]
[1739631062894,0.03879118,194.41,194.39,14.29079908]
[1739631063294,0.03879118,194.41,194.39,9.14739908]
[1739631063501,0.03879118,194.41,194.4,5.1432]
[1739631063999,210.47565331,194.51,194.39,9.14739908]
[1739631064204,19.47565331,194.51,194.45,9.14739908]
[1739631064504,9.14739908,194.51,194.45,9.14739908]
[1739631065104,5.17644338,194.5,194.46,0.03739886]
[1739631065301,0.03584338,194.5,194.46,0.03739886]
[1739631065900,0.03584338,194.5,194.46,5.17879886]
[1739631066101,0.03584338,194.5,194.47,9.14739908]
[1739631066302,0.03584338,194.5,194.48,5.141]
[1739631066500,0.03584338,194.5,194.47,9.14739908]
[1739631069107,0.03584338,194.5,194.46,0.03739886]
[1739631070310,5.17644338,194.5,194.46,0.03739886]
[1739631070711,0.03584338,194.5,194.46,0.03739886]
[1739631071008,5.1409,194.49,194.46,0.03739886]
[1739631071202,0.03584338,194.5,194.46,0.03739886]
[1739631072101,5.1411,194.48,194.46,0.03739886]
[1739631072703,5.1414,194.47,194.46,0.03739886]
[1739631072901,14.28879908,194.47,194.46,0.03739886]
[1739631073105,14.28879908,194.47,194.46,9.886e-05]
[1739631074512,9.14739908,194.47,194.35,9.14739908]
[1739631074810,9.14739908,194.41,194.33,9.14739908]
[1739631075415,5.1435,194.4,194.34,5.1446]
[1739631075609,0.03778604,194.39,194.35,0.03603969]
[1739631075805,14.29529301,194.43,194.34,5.1446]
[1739631076002,0.03672429,194.39,194.35,0.03285615]
[1739631076207,0.03672429,194.39,194.35,5.17735615]
[1739631076813,0.03672429,194.39,194.35,0.03285615]
[1739631078311,0.03672429,194.39,194.37,14.29529301]
[1739631078506,210.16149301,194.49,194.37,14.29529301]
[1739631079013,210.16149301,194.49,194.38,1.572]
[1739631079415,5.1421,194.45,194.4,5.143]
[1739631079615,5.17946148,194.45,194.42,0.03396446]
[1739631080309,0.03736148,194.45,194.42,0.03396446]
[1739631081112,5.17926148,194.45,194.42,0.03396446]
[1739631082515,5.1422,194.44,194.42,0.03396446]
[1739631082714,0.03736148,194.45,194.42,0.03396446]
[1739631083414,5.1424,194.43,194.42,0.03396446]
[1739631084313,14.29529301,194.43,194.31,19.05429301]
[1739631084511,5.1435,194.39,194.31,19.05429301]
[1739631084914,5.1435,194.39,194.34,5.1447]
[1739631085312,5.1432,194.4,194.34,5.1447]
[1739631085513,5.1799352,194.4,194.37,0.0391928]
[1739631086317,0.0367352,194.4,194.37,0.0391928]
[1739631086808,0.0367352,194.4,194.38,5.1437]
[1739631088016,0.0367352,194.4,194.37,0.0391928]
[1739631088413,0.0367352,194.4,194.39,5.1435]
[1739631088917,0.0367352,194.4,194.38,5.1437]
[1739631089322,0.0367352,194.4,194.37,0.0391928]
[1739631089616,0.0367352,194.4,194.37,5.1829928]
[1739631090020,0.0367352,194.4,194.37,0.0391928]
[1739631091319,5.1799352,194.4,194.37,0.0391928]
[1739631091612,0.0367352,194.4,194.37,0.0391928]
[1739631092120,0.0367352,194.4,194.38,5.1435]
[1739631092317,0.0367352,194.4,194.37,0.0391928]
[1739631092522,0.0367352,194.4,194.39,5.1435]
[1739631093317,0.0367352,194.4,194.37,0.0391928]
[1739631094021,0.0367352,194.4,194.38,5.1435]
[1739631094921,0.0367352,194.4,194.37,0.0391928]
[1739631095123,0.0367352,194.4,194.37,5.1829928]
[1739631095323,0.0367352,194.4,194.37,0.0391928]
[1739631095617,0.0367352,194.4,194.38,5.1435]
[1739631096124,0.0367352,194.4,194.39,5.1435]
[1739631098018,0.0367352,194.4,194.37,0.0391928]
[1739631100020,5.1435,194.39,194.37,0.0391928]
[1739631100720,5.1437,194.39,194.37,0.0391928]
[1739631101624,0.0367352,194.4,194.37,0.0391928]
[1739631101817,5.1437,194.38,194.37,0.0391928]
[1739631102523,0.0367352,194.4,194.37,0.0391928]
[1739631102723,5.1435,194.39,194.37,0.0391928]
[1739631103322,0.0367352,194.4,194.37,0.0391928]
[1739631103926,5.1437,194.39,194.37,0.0391928]
[1739631104328,0.0367352,194.4,194.37,0.0391928]
[1739631104526,5.1437,194.38,194.37,0.0391928]
[1739631105228,5.1435,194.39,194.37,0.0391928]
[1739631108128,5.1437,194.38,194.37,0.0391928]
[1739631109227,0.0367352,194.4,194.3,14.29529301]
[1739631109428,5.1442,194.37,194.31,5.1456]
[1739631109625,4.892,194.42,194.31,5.1456]
[1739631110321,0.03768479,194.38,194.35,0.03511641]
[1739631110830,5.1443,194.36,194.35,0.03511641]
[1739631111127,0.03768479,194.38,194.27,14.29529301]
[1739631111327,14.29529301,194.4,194.27,14.29529301]
[1739631111827,14.29529301,194.37,194.27,14.29529301]
[1739631112029,14.29529301,194.37,194.28,5.1464]
[1739631112227,0.03424291,194.34,194.3,0.03340431]
[1739631112528,5.17904291,194.34,194.3,0.03340431]
[1739631115334,0.03424291,194.34,194.3,5.17920431]
[1739631116134,5.17904291,194.34,194.3,0.03340431]
[1739631117034,0.03424291,194.34,194.3,5.17920431]
[1739631118438,0.03424291,194.34,194.32,5.1453]
[1739631118935,0.03424291,194.34,194.3,5.17910431]
[1739631119838,0.03424291,194.34,194.31,5.1456]
[1739631120440,0.03424291,194.34,194.3,0.03340431]
[1739631121136,5.17904291,194.34,194.3,0.03340431]
[1739631121735,9.18723623,194.34,194.3,0.03340431]
[1739631121936,9.15299332,194.32,194.23,9.15299332]
[1739631122232,9.15299332,194.27,194.21,9.15299332]
[1739631122437,3.2756,194.33,194.14,57.09610563]
[1739631122438,9.15299332,194.25,194.19,9.15299332]
[1739631122637,9.15299332,194.23,194.17,9.15299332]
[1739631122937,9.15299332,194.23,194.18,5.1488]
[1739631123129,0.03411603,194.22,194.18,0.03532571]
[1739631125042,0.03411603,194.22,194.18,5.18412571]
[1739631125739,0.03411603,194.22,194.18,0.03532571]
[1739631127041,0.03411603,194.22,194.18,5.18432571]
[1739631127245,0.03411603,194.22,194.18,0.03532571]
[1739631128636,5.1488,194.19,194.18,0.03532571]
[1739631128839,14.3199798,194.21,194.07,14.3199798]
[1739631128840,15.8308798,194.21,194.07,14.3199798]
[1739631129042,14.3199798,194.18,194.07,14.3199798]
[1739631129243,5.1497,194.16,194.1,5.1511]
[1739631129743,5.1497,194.16,194.07,14.3199798]
[1739631129744,14.3199798,194.18,194.07,14.3199798]
[1739631129939,14.3199798,194.18,194.11,0.03549594]
[1739631130144,0.037205,194.15,194.11,0.03549594]
[1739631130541,0.037205,194.15,194.11,5.18639594]
[1739631131137,0.037205,194.15,194.11,0.03549594]
[1739631133146,5.1501,194.14,194.11,0.03549594]
[1739631135646,5.187105,194.15,194.11,5.18639594]
[1739631136042,14.3199798,194.13,194.11,0.03549594]
[1739631136247,5.1515,194.09,193.99,50.40543146]
[1739631136448,14.3199798,194.13,193.99,50.40543146]
[1739631136842,14.3199798,194.1,193.99,50.40543146]
[1739631137043,14.3199798,194.13,194.01,14.3199798]
[1739631137251,0.03398526,194.09,194.05,0.03403239]
[1739631137443,0.03398526,194.09,194.06,5.152]
[1739631138051,0.03398526,194.09,194.07,5.1519]
[1739631138348,0.03398526,194.09,194.05,0.03403239]
[1739631139448,5.18548526,194.09,194.05,0.03403239]
[1739631140143,0.03398526,194.09,194.05,0.03403239]
[1739631142051,5.18568526,194.09,194.05,0.03403239]
[1739631142753,5.1517,194.08,194.05,0.03403239]
[1739631143250,0.03398526,194.09,194.05,0.03403239]
[1739631144249,0.03398526,194.09,194.06,5.1522]
[1739631146357,0.03398526,194.09,194.08,5.1517]
[1739631151360,0.03398526,194.09,194.07,5.1519]
[1739631151754,0.03398526,194.09,194.05,0.03403239]
[1739631152958,5.18548526,194.09,194.05,0.03403239]
[1739631153159,14.35396506,194.09,194.05,0.03403239]
[1739631153556,5.1522,194.06,194.05,0.03403239]
[1739631154756,14.35396506,194.09,194.05,0.03403239]
[1739631155357,5.1519,194.08,194.05,0.03403239]
[1739631155662,14.35396506,194.09,194.05,0.03403239]
[1739631156062,5.1517,194.08,194.05,0.03403239]
[1739631156361,14.35396506,194.09,194.05,0.03403239]
[1739631157560,5.1517,194.08,194.05,0.03403239]
[1739631157856,14.35396506,194.09,194.05,5.18643239]
[1739631158662,14.35396506,194.09,194.05,0.03403239]
[1739631160464,14.35396506,194.09,194.05,5.18643239]
[1739631161657,14.35396506,194.09,194.06,5.1522]
[1739631162359,0.03398526,194.09,194.07,5.1519]
[1739631164561,0.03398526,194.09,194.05,0.03403239]
[1739631164964,9.17641969,194.08,194.05,0.03403239]
[1739631165666,9.17641969,194.06,194.05,0.03403239]
[1739631173372,9.17641969,194.06,194.05,5.18653239]
[1739631174371,9.17641969,194.06,194.05,0.03403239]
[1739631176068,9.17641969,194.06,194.05,5.18653239]
[1739631176371,9.17641969,194.08,194.05,5.18653239]
[1739631177374,9.17641969,194.08,194.05,0.03403239]
[1739631177571,9.17641969,194.06,194.05,0.03403239]
[1739631178876,9.17641969,194.06,194.05,5.18653239]
[1739631179175,9.17641969,194.06,194.05,0.03403239]
[1739631179768,9.17641969,194.06,194.05,5.18653239]
[1739631179965,9.17641969,194.08,194.05,5.18653239]
[1739631181370,0.03398526,194.09,194.07,5.152]
[1739631181573,0.03398526,194.09,194.05,0.03403239]
[1739631182172,0.03398526,194.09,194.06,9.17641969]
[1739631182977,0.03398526,194.09,194.08,5.1517]
[1739631184075,0.03398526,194.09,194.08,14.32811969]
[1739631184877,0.03398526,194.09,194.08,5.1517]
[1739631187176,0.03398526,194.09,194.05,0.03403239]
[1739631187372,9.17641969,194.07,194.05,0.03403239]
[1739631188572,5.1522,194.06,194.05,0.03403239]
[1739631190679,14.32841969,194.07,194.05,0.03403239]
[1739631193282,5.1522,194.06,194.05,0.03403239]
[1739631194280,9.17641969,194.07,193.96,9.17641969]
[1739631194479,9.17641969,193.99,193.94,3.0939]
[1739631195081,9.17641969,193.99,193.97,5.1546]
[1739631196179,9.17641969,193.99,193.96,5.18742981]
[1739631196481,9.17641969,193.99,193.96,0.03252981]
[1739631196681,9.17641969,193.97,193.96,0.03252981]
[1739631199084,9.17641969,193.99,193.97,5.1546]
[1739631200285,9.17641969,193.99,193.96,5.18732981]
[1739631200784,9.17641969,193.99,193.96,0.03252981]
[1739631202085,9.17641969,193.99,193.97,5.1546]
[1739631203488,9.17641969,193.99,193.96,0.03252981]
[1739631204088,9.17641969,193.99,193.97,5.1545]
[1739631204783,0.03270871,194.0,193.96,9.2089495]
[1739631205089,0.03270871,194.0,193.99,5.1541]
[1739631208581,0.03270871,194.0,193.96,9.2089495]
[1739631208780,0.03270871,194.0,193.96,0.03252981]
[1739631208990,0.03270871,194.0,193.96,5.18732981]
[1739631209286,0.03270871,194.0,193.96,0.03252981]
[1739631209689,0.03270871,194.0,193.97,5.1545]
[1739631212191,0.03270871,194.0,193.96,0.03252981]
[1739631212788,0.03270871,194.0,193.96,9.2089495]
[1739631214091,0.03270871,194.0,193.99,5.1541]
[1739631220190,9.17641969,194.09,193.98,9.17641969]
[1739631220391,9.17641969,194.11,194.04,9.17641969]
[1739631220790,14.32731969,194.11,194.06,5.1522]
[1739631221398,0.03755348,194.1,194.07,0.0376031]
[1739631223805,0.03755348,194.1,194.08,9.17641969]
[1739631225105,0.03755348,194.1,194.09,5.1514]
[1739631226001,0.03755348,194.1,194.08,9.17641969]
[1739631227707,0.03755348,194.1,194.09,5.1514]
[1739631228807,0.03755348,194.1,194.08,14.32811969]
[1739631229610,0.03755348,194.1,194.08,9.17641969]
[1739631229808,0.03755348,194.1,194.09,5.1514]
[1739631231805,0.03755348,194.1,194.08,14.32811969]
[1739631232006,0.03755348,194.1,194.07,0.0376031]
[1739631232200,9.17641969,194.09,194.07,0.0376031]
[1739631234014,5.1517,194.08,194.07,0.0376031]
[1739631234515,9.17641969,194.09,193.98,9.17641969]
[1739631234707,9.17641969,194.04,193.98,9.17641969]
[1739631235316,14.32891969,194.06,194.01,5.1533]
[1739631235718,0.03459977,194.05,194.02,0.03416778]
[1739631236416,0.03459977,194.05,194.03,5.1528]
[1739631236614,0.03459977,194.05,194.02,9.21058747]
[1739631237616,0.03459977,194.05,194.04,5.1528]
[1739631237816,0.03459977,194.05,194.02,0.03416778]
[1739631241620,0.03459977,194.05,194.02,5.18726778]
[1739631243716,5.18709977,194.05,194.02,0.03416778]
[1739631243920,9.17641969,194.04,194.02,0.03416778]
[1739631244818,5.153,194.03,194.02,0.03416778]
[1739631246722,9.17641969,194.04,194.02,0.03416778]
[1739631246921,14.32921969,194.04,194.02,0.03416778]
[1739631248019,5.153,194.03,194.02,0.03416778]
[1739631250728,5.1541,193.99,193.95,5.1551]
[1739631250927,9.17641969,193.98,193.91,51.53389979]
[1739631251727,14.33081969,193.98,193.93,5.1557]
[1739631252024,0.03395359,193.96,193.93,5.19098404]
[1739631252625,0.03395359,193.96,193.94,9.17641969]
[1739631253222,0.03395359,193.96,193.95,5.1551]
[1739631259828,9.17641969,194.06,193.94,9.17641969]
[1739631260028,9.17641969,194.06,193.99,9.17641969]
[1739631261031,0.03857324,194.04,194.02,5.1531]
[1739631261328,0.03857324,194.04,194.01,0.03616537]
[1739631261633,0.03857324,194.04,194.03,5.153]
[1739631265234,0.03857324,194.04,194.03,14.32941969]
[1739631280746,5.151,194.11,194.07,5.1517]
[1739631281749,5.18844767,194.11,194.07,5.18477517]
[1739631282250,5.18844767,194.11,194.08,5.1517]
[1739631282449,0.03744767,194.11,194.08,5.1517]
[1739631282747,0.03744767,194.11,194.07,9.20949486]
[1739631285853,0.03744767,194.11,194.1,5.1512]
[1739631286651,0.03744767,194.11,194.09,9.17641969]
[1739631287548,0.03744767,194.11,194.1,5.1512]
[1739631294058,0.03744767,194.11,194.09,5.1514]
[1739631295458,0.03744767,194.11,194.07,9.20949486]
[1739631296152,0.03744767,194.11,194.09,5.1512]
[1739631296757,0.03744767,194.11,194.1,5.1512]
[1739631304062,0.03744767,194.11,194.07,9.20949486]
[1739631304764,0.03744767,194.11,194.1,5.1512]
[1739631318074,4.767e-05,194.11,194.1,5.1512]
[1739631325376,10.83811969,194.2,194.09,9.17641969]
[1739631325581,3.0367,194.21,194.17,5.1491]
[1739631325781,148.34677791,194.24,194.18,9.17641969]
[1739631326182,5.1483,194.21,194.16,9.17641969]
[1739631326481,5.1483,194.21,194.14,9.17641969]
[1739631326680,5.18237364,194.2,194.17,0.03761921]
[1739631327981,5.1488,194.19,194.17,0.03761921]
[1739631328374,5.18247364,194.2,194.17,0.03761921]
[1739631329981,5.1489,194.19,194.17,0.03761921]
[1739631330178,0.03387364,194.2,194.17,0.03761921]
[1739631330685,5.18257364,194.2,194.17,0.03761921]
[1739631331684,0.03387364,194.2,194.18,9.17641969]
[1739631332076,153.29906385,194.26,194.18,9.17641969]
[1739631332281,149.43533029,194.26,194.22,9.17641969]
[1739631332782,139.17035822,194.26,194.22,9.17641969]
[1739631333382,139.20303218,194.26,194.22,9.21159983]
[1739631334882,139.20303218,194.26,194.24,9.17641969]
[1739631335784,0.03267396,194.26,194.24,9.17641969]
[1739631340793,5.17967396,194.26,194.24,9.17641969]
[1739631341586,0.03267396,194.26,194.24,9.17641969]
[1739631342387,5.17957396,194.26,194.24,9.17641969]
[1739631343194,5.1472,194.25,194.24,9.17641969]
[1739631343391,0.03267396,194.26,194.24,9.17641969]
[1739631344491,5.1477,194.24,194.22,0.03518014]
[1739631345198,0.03267396,194.26,194.2,9.17641969]
[1739631345199,9.17641969,194.25,194.2,9.17641969]
[1739631346502,9.17641969,194.25,194.21,0.03443499]
[1739631347597,5.148,194.22,194.21,0.03443499]
[1739631347893,0.03267396,194.26,194.21,0.03443499]
[1739631348098,152.43222053,194.37,194.24,9.17641969]
[1739631348298,152.43222053,194.37,194.32,9.17641969]
[1739631348501,142.41425822,194.37,194.32,9.17641969]
[1739631349204,5.1445,194.35,194.33,0.03714527]
[1739631350301,5.1448,194.34,194.33,0.03714527]
[1739631350498,6.675,194.34,194.33,0.03714527]
[1739631352304,1.5302,194.34,194.33,0.03714527]
[1739631353706,6.675,194.34,194.33,0.03714527]
[1739631353905,1.5302,194.34,194.33,0.03714527]
[1739631356109,5.1446,194.35,194.33,0.03714527]
[1739631356804,5.17737104,194.36,194.33,0.03714527]
[1739631357010,0.03307104,194.36,194.34,9.17641969]
[1739631357405,5.17737104,194.36,194.34,9.17641969]
[1739631358810,0.03307104,194.36,194.33,0.03714527]
[1739631360007,5.1448,194.34,194.33,0.03714527]
[1739631361509,5.1446,194.35,194.33,0.03714527]
[1739631362006,5.17757104,194.36,194.33,0.03714527]
[1739631362215,0.03307104,194.36,194.34,9.17641969]
[1739631363315,0.03307104,194.36,194.35,5.1445]
[1739631365516,0.03307104,194.36,194.34,9.17641969]
[1739631365517,9.17641969,194.46,194.34,9.17641969]
[1739631365716,9.17641969,194.46,194.41,9.17641969]
[1739631366218,48.55874778,194.47,194.41,9.17641969]
[1739631366715,0.03361626,194.46,194.42,0.034313]
[1739631368117,5.1424,194.44,194.42,0.034313]
[1739631368318,9.17641969,194.44,194.42,0.034313]
[1739631368711,9.17641969,194.44,194.35,9.17641969]
[1739631368917,9.17641969,194.41,194.35,9.17641969]
[1739631369318,5.1437,194.39,194.35,9.17641969]
[1739631369816,5.18072726,194.39,194.35,9.21416101]
[1739631370118,0.03702726,194.39,194.37,9.17641969]
[1739631370717,0.03702726,194.39,194.38,5.1437]
[1739631370915,0.03702726,194.39,194.37,9.17641969]
[1739631372423,0.03702726,194.39,194.37,14.32041969]
[1739631373024,0.03702726,194.39,194.37,9.17641969]
[1739631374622,0.03702726,194.39,194.37,14.32041969]
[1739631375728,0.03702726,194.39,194.38,5.1437]
[1739631376323,9.17641969,194.47,194.37,9.17641969]
[1739631376525,9.17641969,194.49,194.42,9.17641969]
[1739631377027,5.1419,194.45,194.42,9.17641969]
[1739631377229,9.17641969,194.49,194.42,9.17641969]
[1739631377628,0.03719018,194.47,194.44,0.03310458]
[1739631378531,0.03719018,194.47,194.45,5.1418]
[1739631378732,0.03719018,194.47,194.44,9.20952427]
[1739631380134,0.03719018,194.47,194.45,5.1417]
[1739631380331,0.03719018,194.47,194.44,9.20952427]
[1739631381134,0.03719018,194.47,194.44,0.03310458]
[1739631381434,9.21360987,194.47,194.44,0.03310458]
[1739631381635,5.1419,194.45,194.44,0.03310458]
[1739631384335,14.31831969,194.45,194.44,0.03310458]
[1739631392336,5.1419,194.45,194.44,0.03310458]
[1739631393845,9.21360987,194.47,194.44,0.03310458]
[1739631393846,5.1419,194.46,194.44,0.03310458]
[1739631394046,0.03719018,194.47,194.44,0.03310458]
[1739631394441,0.03719018,194.47,194.44,9.20952427]
[1739631397146,5.17859018,194.47,194.44,9.20952427]
[1739631397837,5.1416,194.46,194.44,9.20952427]
[1739631401546,5.1419,194.45,194.44,0.03310458]
[1739631402742,5.1417,194.46,194.44,0.03310458]
[1739631405049,0.03719018,194.47,194.44,0.03310458]
[1739631406142,5.17859018,194.47,194.44,0.03310458]
[1739631406749,5.17859018,194.47,194.44,9.20952427]
[1739631408148,0.03719018,194.47,194.46,14.31801969]
[1739631415057,9.17641969,194.55,194.46,9.17641969]
[1739631415258,5.1398,194.53,194.49,14.31711969]
[1739631416258,5.17307692,194.53,194.49,14.35172112]
[1739631419363,0.03327692,194.53,194.49,14.35172112]
[1739631420763,5.17327692,194.53,194.49,9.21102112]
[1739631420959,0.03327692,194.53,194.49,9.21102112]
[1739631421264,5.1402,194.52,194.49,9.21102112]
[1739631421665,0.03327692,194.53,194.49,9.21102112]
[1739631421865,5.1404,194.51,194.49,9.21102112]
[1739631422468,0.03327692,194.53,194.49,9.21102112]
[1739631422668,5.1401,194.52,194.49,9.21102112]
[1739631423870,0.03327692,194.53,194.49,9.21102112]
[1739631424068,5.17327692,194.53,194.49,14.35162112]
[1739631427069,5.1401,194.52,194.49,9.21102112]
[1739631427268,0.03327692,194.53,194.49,9.21102112]
[1739631427769,5.17327692,194.53,194.49,9.21102112]
[1739631428167,5.17327692,194.53,194.49,14.35182112]
[1739631428368,5.17307692,194.53,194.49,14.35182112]
[1739631429070,0.03327692,194.53,194.5,5.1406]
[1739631430264,0.03327692,194.53,194.49,14.35182112]
[1739631430470,5.17327692,194.53,194.49,9.21102112]
[1739631431468,5.17327692,194.53,194.49,14.35182112]
[1739631433676,0.03327692,194.53,194.49,9.21102112]
[1739631433877,5.1402,194.52,194.49,9.21102112]
[1739631434174,9.20969661,194.53,194.49,0.03460143]
[1739631434374,5.1406,194.5,194.49,0.03460143]
[1739631438779,9.17641969,194.51,194.49,0.03460143]
[1739631439281,9.20969661,194.53,194.49,0.03460143]
[1739631440173,9.20969661,194.53,194.49,9.21102112]
[1739631440174,0.03327692,194.53,194.49,9.21102112]
[1739631440577,0.03327692,194.53,194.49,14.35162112]
[1739631440981,0.03327692,194.53,194.49,9.21102112]
[1739631441181,0.03327692,194.53,194.51,5.1403]
[1739631441582,0.03327692,194.53,194.51,9.17641969]
[1739631442481,0.03327692,194.53,194.52,5.14]
[1739631443983,0.03327692,194.53,194.51,14.31671969]
[1739631444180,0.03327692,194.53,194.51,9.17641969]
[1739631444576,0.03327692,194.53,194.52,5.14]
[1739631446185,0.03327692,194.53,194.51,9.17641969]
[1739631446385,0.03327692,194.53,194.51,14.31671969]
[1739631446987,0.03327692,194.53,194.51,9.17641969]
[1739631448286,5.14,194.52,194.51,9.17641969]
[1739631455195,5.1405,194.51,194.49,9.21102112]
[1739631455395,0.03327692,194.53,194.49,9.21102112]
[1739631457097,5.1401,194.52,194.49,9.21102112]
[1739631457798,0.03327692,194.53,194.49,9.21102112]
[1739631457997,5.17327692,194.53,194.49,14.35182112]
[1739631459293,0.03327692,194.53,194.49,14.35182112]
[1739631459495,5.1401,194.52,194.49,14.35182112]
[1739631459695,0.03327692,194.53,194.49,14.35182112]
[1739631460093,5.17327692,194.53,194.49,14.35182112]
[1739631462006,0.03327692,194.53,194.49,9.21102112]
[1739631462402,5.1406,194.5,194.49,0.03460143]
[1739631463203,5.1404,194.51,194.49,0.03460143]
[1739631463706,5.1406,194.5,194.49,0.03460143]
[1739631464809,5.1401,194.52,194.49,0.03460143]
[1739631465910,5.17307692,194.53,194.49,14.35182112]
[1739631466709,0.03327692,194.53,194.5,5.1405]
[1739631468207,0.03327692,194.53,194.49,14.35182112]
[1739631469517,5.17317692,194.53,194.49,14.35182112]
[1739631471417,5.17317692,194.53,194.49,9.21102112]
[1739631472523,0.03327692,194.53,194.49,9.21102112]
[1739631472726,5.1403,194.52,194.49,9.21102112]
[1739631478631,5.1403,194.51,194.49,0.03460143]
[1739631480427,5.1406,194.5,194.49,0.03460143]
[1739631484034,9.17641969,194.51,194.43,9.17641969]
[1739631484228,5.1416,194.47,194.43,9.17641969]
[1739631484436,9.17641969,194.5,194.43,9.17641969]
[1739631485326,0.03774609,194.48,194.45,0.03566202]
[1739631485523,9.21416578,194.48,194.45,0.03566202]
[1739631486332,14.31801969,194.46,194.45,0.03566202]
[1739631488727,9.17641969,194.46,194.39,9.17641969]
[1739631488928,5.1428,194.42,194.37,9.17641969]
[1739631489235,9.17641969,194.44,194.38,5.1437]
[1739631490033,0.03572227,194.43,194.39,14.35329184]
[1739631490233,9.17641969,194.44,194.39,14.31981969]
[1739631490534,0.03934514,194.43,194.39,14.35810748]
[1739631490733,5.18184514,194.43,194.39,9.21470748]
[1739631491434,0.03934514,194.43,194.39,9.21470748]
[1739631493041,0.03934514,194.43,194.39,14.35820748]
[1739631494835,0.03934514,194.43,194.41,9.17641969]
[1739631495340,0.03934514,194.43,194.41,14.31911969]
[1739631496042,0.03934514,194.43,194.41,9.17641969]
[1739631496240,0.03934514,194.43,194.42,5.1427]
[1739631496638,0.03934514,194.43,194.41,9.17641969]
[1739631497545,0.03934514,194.43,194.39,9.21470748]
[1739631498547,0.03934514,194.43,194.41,9.17641969]
[1739631499838,5.18174514,194.43,194.41,9.17641969]
[1739631500342,0.03934514,194.43,194.41,9.17641969]
[1739631501344,5.1427,194.42,194.39,9.21470748]
[1739631507758,5.143,194.41,194.39,9.21470748]
[1739631508053,9.17641969,194.42,194.39,0.03828779]
[1739631508648,5.1432,194.41,194.39,0.03828779]
[1739631510756,9.17641969,194.42,194.39,0.03828779]
[1739631510949,5.1432,194.4,194.39,0.03828779]
[1739631516159,5.143,194.41,194.39,0.03828779]
[1739631518161,5.18194514,194.43,194.39,0.03828779]
[1739631518763,5.18194514,194.43,194.39,9.21470748]
[1739631519663,5.18194514,194.43,194.39,14.35820748]
[1739631522057,0.03934514,194.43,194.39,14.35820748]
[1739631522361,0.03934514,194.43,194.4,5.1432]
[1739631522561,0.03934514,194.43,194.39,9.21470748]
[1739631523363,0.03934514,194.43,194.39,14.35810748]
[1739631532877,5.18194514,194.43,194.39,9.21470748]